bitfinex-derivatives/quotes_SOLF0:USTF0_20251025
["timestamp","ask_amount","ask_price","bid_price","bid_amount"]
[1761424932465,15.45,194.45,194.26,2.84]
[1761424933365,10.30310662,194.45,194.26,2.84]
[1761424938769,10.30310662,194.45,194.28,2.84]
[1761424938971,10.30310662,194.45,194.29,13.42833655]
[1761424939174,10.30310662,194.45,194.3,10.58833655]
[1761424939372,10.30310662,194.45,194.29,2.84]
[1761424939373,10.30310662,194.45,194.31,10.58833655]
[1761424939665,10.30310662,194.45,194.32,10.58833655]
[1761424939870,10.30310662,194.45,194.33,10.58833655]
[1761424940173,10.30310662,194.45,194.34,10.58833655]
[1761424940373,10.30310662,194.45,194.35,10.58833655]
[1761424940573,10.30310662,194.45,194.36,10.58833655]
[1761424940872,10.30310662,194.45,194.37,10.58833655]
[1761424941061,10.30310662,194.45,194.38,10.58833655]
[1761424941261,10.30310662,194.45,194.39,10.58833655]
[1761424941468,10.30310662,194.45,194.3,2.84]
[1761424944472,10.30310662,194.45,194.32,9.53974361]
[1761424945575,10.30310662,194.43,194.3,2.84]
[1761424945777,14.75431863,194.42,194.3,2.84]
[1761424945969,4.45121201,194.41,194.3,2.84]
[1761424946271,67.05121201,194.4,194.3,2.84]
[1761424946465,62.6,194.4,194.3,2.84]
[1761424948179,10.30310662,194.47,194.3,2.84]
[1761424948476,10.30310662,194.45,194.3,2.84]
[1761424949472,10.30310662,194.43,194.3,2.84]
[1761424949772,14.71517978,194.42,194.3,2.84]
[1761424949970,4.41207316,194.41,194.3,2.84]
[1761424950173,4.41207316,194.4,194.3,2.84]
[1761424950373,66.97207316,194.39,194.3,2.84]
[1761424950573,4.41207316,194.38,194.3,2.84]
[1761424950775,4.41207316,194.37,194.3,2.84]
[1761424950980,4.41207316,194.36,194.3,2.84]
[1761424951275,4.41207316,194.35,194.3,2.84]
[1761424951581,62.56,194.39,194.3,2.84]
[1761424953481,62.56,194.39,194.31,10.29831537]
[1761424953775,62.56,194.39,194.32,10.29831537]
[1761424953980,62.56,194.39,194.33,10.29831537]
[1761424954282,62.56,194.39,194.34,10.29831537]
[1761424954483,62.56,194.39,194.35,10.29831537]
[1761424954783,62.56,194.39,194.3,2.84]
[1761424954784,62.56,194.39,194.36,10.29831537]
[1761424954973,62.56,194.39,194.37,5.85884426]
[1761424955177,62.56,194.39,194.38,4.80165306]
[1761424955372,62.56,194.39,194.3,2.84]
[1761424955582,62.56,194.39,194.31,4.44822982]
[1761424955782,62.56,194.39,194.32,4.44822982]
[1761424955985,62.56,194.39,194.33,4.44822982]
[1761424956285,62.56,194.39,194.34,4.44822982]
[1761424956485,62.56,194.39,194.35,4.44822982]
[1761424956686,62.56,194.39,194.36,4.44822982]
[1761424956986,62.56,194.39,194.37,4.44822982]
[1761424957185,62.56,194.39,194.3,2.84]
[1761424957486,62.56,194.39,194.31,4.44909882]
[1761424957687,62.56,194.39,194.32,4.44909882]
[1761424957884,62.56,194.39,194.33,4.44909882]
[1761424958186,62.56,194.39,194.34,4.44909882]
[1761424958488,62.56,194.39,194.35,4.44909882]
[1761424958790,62.56,194.39,194.3,2.84]
[1761424958993,62.56,194.39,194.31,4.44921146]
[1761424959190,62.56,194.39,194.32,4.44921146]
[1761424959384,62.56,194.39,194.33,4.44921146]
[1761424959585,62.56,194.39,194.34,4.44921146]
[1761424959890,62.56,194.39,194.35,4.44921146]
[1761424960091,62.56,194.39,194.36,4.44913198]
[1761424960291,62.56,194.39,194.3,2.84]
[1761424960495,62.56,194.39,194.31,4.44942258]
[1761424960694,62.56,194.39,194.32,4.44942258]
[1761424960995,62.56,194.39,194.33,4.44942258]
[1761424961194,62.56,194.39,194.34,4.44942258]
[1761424961391,62.56,194.39,194.35,4.44942258]
[1761424961592,62.56,194.39,194.36,4.44942258]
[1761424961794,62.56,194.39,194.3,2.84]
[1761424961996,62.56,194.39,194.31,4.47369702]
[1761424962196,62.56,194.39,194.32,4.47369702]
[1761424962397,62.56,194.39,194.33,4.47369702]
[1761424962599,62.56,194.39,194.34,4.47369702]
[1761424962790,62.56,194.39,194.35,4.47369702]
[1761424962997,62.56,194.39,194.36,4.47369702]
[1761424963298,62.56,194.39,194.3,2.84]
[1761424963299,62.56,194.39,194.37,4.47369702]
[1761424963502,62.56,194.39,194.3,2.84]
[1761424963701,62.56,194.39,194.31,7.1009147]
[1761424963899,62.56,194.39,194.32,4.4909147]
[1761424964099,62.56,194.39,194.33,4.4909147]
[1761424964301,62.56,194.39,194.34,4.4909147]
[1761424964502,62.56,194.39,194.35,4.4909147]
[1761424964702,62.56,194.39,194.36,4.4909147]
[1761424964903,62.56,194.39,194.37,4.4909147]
[1761424965104,62.48,194.38,194.31,2.61]
[1761424965305,62.48,194.38,194.33,2.61]
[1761424965497,62.48,194.38,194.34,4.49173102]
[1761424965697,62.48,194.38,194.35,4.49173102]
[1761424965998,62.48,194.38,194.36,4.49173102]
[1761424966206,62.48,194.38,194.37,4.49173102]
[1761424967305,62.48,194.38,194.37,9.98948065]
[1761424968000,10.30310662,194.44,194.37,9.98948065]
[1761424968201,10.30310662,194.42,194.38,9.98948065]
[1761424968406,10.30310662,194.42,194.39,9.94043432]
[1761424968603,10.30310662,194.42,194.34,2.61]
[1761424971514,7.72937794,194.42,194.34,2.61]
[1761424974310,7.72937794,194.42,194.34,8.99002569]
[1761424975009,7.72937794,194.42,194.34,2.61]
[1761424976709,62.42,194.41,194.34,2.61]
[1761424976909,58.55972221,194.41,194.34,2.61]
[1761424978616,58.55972221,194.41,194.27,6.38002569]
[1761424978617,4.08550883,194.4,194.28,2.61]
[1761424978819,4.08550883,194.39,194.28,2.61]
[1761424979014,4.08550883,194.38,194.31,2.61]
[1761424979214,4.08550883,194.37,194.31,2.61]
[1761424979415,4.08550883,194.36,194.31,2.61]
[1761424979611,58.55972221,194.41,194.31,2.61]
[1761424980317,58.55972221,194.41,194.28,6.38002569]
[1761424980318,7.72937794,194.46,194.32,6.22213911]
[1761424980518,62.4,194.4,194.33,8.81213911]
[1761424980719,62.4,194.39,194.35,2.59]
[1761424980914,62.4,194.38,194.36,10.68733543]
[1761424981121,62.4,194.38,194.37,10.68733543]
[1761424981615,63.42,194.38,194.37,10.68733543]
[1761424983118,63.42,194.38,194.37,6.22213911]
[1761424983322,60.84641185,194.38,194.37,6.22213911]
[1761424983922,60.84641185,194.38,194.37,10.87326258]
[1761424984613,7.72937794,194.46,194.37,10.87326258]
[1761424984923,205.88,194.47,194.38,6.22213911]
[1761424984924,6.40877462,194.4,194.38,6.22213911]
[1761424985122,6.40877462,194.4,194.39,6.22213911]
[1761424985923,9.61316193,194.42,194.39,6.22213911]
[1761424986123,9.61316193,194.42,194.4,6.22213911]
[1761424986315,9.61316193,194.42,194.34,2.59]
[1761424986512,4.80621726,194.35,194.34,2.59]
[1761424986717,67.18621726,194.35,194.34,7.2619156]
[1761424988625,62.38,194.35,194.34,7.2619156]
[1761424990115,4.34536264,194.35,194.34,4.6719156]
[1761424990320,66.70536264,194.35,194.34,4.6719156]
[1761424990521,66.70536264,194.35,194.16,6.38002569]
[1761424990721,4.80490883,194.32,194.16,6.38002569]
[1761424990923,4.34536264,194.31,194.16,6.38002569]
[1761424991121,4.34536264,194.3,194.16,6.38002569]
[1761424991320,4.34536264,194.29,194.16,6.38002569]
[1761424991528,4.34536264,194.28,194.16,6.38002569]
[1761424991719,4.34536264,194.31,194.16,6.38002569]
[1761424991919,4.34536264,194.3,194.16,6.38002569]
[1761424992121,4.34536264,194.29,194.16,6.38002569]
[1761424992316,4.34536264,194.28,194.16,6.38002569]
[1761424992520,4.34536264,194.31,194.17,2.79]
[1761424992720,4.80490883,194.32,194.17,2.79]
[1761424992721,4.34536264,194.3,194.17,2.79]
[1761424993027,4.34536264,194.29,194.17,2.79]
[1761424993229,4.34536264,194.28,194.17,2.79]
[1761424993428,4.34536264,194.31,194.17,2.79]
[1761424993630,4.34536264,194.3,194.17,2.79]
[1761424993929,4.34536264,194.29,194.17,2.79]
[1761424994123,4.34536264,194.28,194.19,2.79]
[1761424994323,4.34536264,194.3,194.19,2.79]
[1761424994525,4.34536264,194.29,194.19,2.79]
[1761424994727,4.34536264,194.28,194.19,2.79]
[1761424994926,4.34536264,194.3,194.19,2.79]
[1761424995127,4.34536264,194.29,194.22,2.79]
[1761424995327,4.34536264,194.28,194.22,2.79]
[1761424995630,4.34536264,194.3,194.22,2.79]
[1761424995828,4.34536264,194.29,194.22,2.79]
[1761424996031,4.34536264,194.28,194.22,2.79]
[1761424996232,4.34536264,194.3,194.22,2.79]
[1761424996420,4.34536264,194.29,194.22,2.79]
[1761424996623,4.34536264,194.28,194.22,2.79]
[1761424996826,4.34536264,194.3,194.22,2.79]
[1761424997028,4.34536264,194.29,194.22,2.79]
[1761424997327,4.34536264,194.28,194.22,2.79]
[1761424997527,4.34536264,194.3,194.22,2.79]
[1761424997729,4.34536264,194.29,194.22,2.79]
[1761424997928,4.34536264,194.28,194.22,2.79]
[1761424998130,4.34536264,194.3,194.22,2.79]
[1761424998331,4.34536264,194.29,194.22,2.79]
[1761424998530,4.34536264,194.28,194.22,2.79]
[1761424998733,4.34536264,194.3,194.22,2.79]
[1761424998936,4.34536264,194.29,194.22,2.79]
[1761424999234,4.34536264,194.28,194.22,2.79]
[1761424999433,3.73282373,194.27,194.22,2.79]
[1761424999635,3.73282373,194.26,194.22,2.79]
[1761424999824,0.00282373,194.25,194.22,2.79]
[1761425000028,4.34536264,194.28,194.22,2.79]
[1761425005536,4.80490883,194.29,194.22,2.79]
[1761425006640,4.34345964,194.28,194.22,2.79]
[1761425006939,4.80490883,194.29,194.22,2.79]
[1761425008039,4.34448391,194.28,194.22,2.79]
[1761425008342,4.80490883,194.29,194.22,2.79]
[1761425011844,3.71630139,194.28,194.22,2.79]
[1761425012145,3.71630139,194.27,194.22,2.79]
[1761425012344,3.71630139,194.26,194.22,2.79]
[1761425012642,3.71630139,194.25,194.22,2.79]
[1761425012843,3.71630139,194.24,194.22,2.79]
[1761425013146,4.80490883,194.29,194.22,2.79]
[1761425013333,3.7162994,194.28,194.22,2.79]
[1761425013538,3.7162994,194.27,194.22,2.79]
[1761425013738,3.7162994,194.26,194.22,2.79]
[1761425013946,3.7162994,194.25,194.22,2.79]
[1761425014149,3.7162994,194.24,194.22,2.79]
[1761425014443,4.80490883,194.29,194.22,2.79]
[1761425014644,3.71543172,194.28,194.22,2.79]
[1761425014844,3.71543172,194.27,194.22,2.79]
[1761425015042,3.71543172,194.26,194.22,2.79]
[1761425015241,8.52034055,194.25,194.22,2.79]
[1761425015446,3.71543172,194.24,194.22,2.79]
[1761425015648,3.71543172,194.23,194.22,2.79]
[1761425019648,3.71543172,194.23,194.09,4.6365]
[1761425019942,3.71543172,194.22,194.09,4.6365]
[1761425020153,3.71543172,194.21,194.09,4.6365]
[1761425020340,8.28972688,194.24,194.09,4.6365]
[1761425020546,8.28972688,194.23,194.09,4.6365]
[1761425020852,8.28972688,194.22,194.09,4.6365]
[1761425021147,3.71543172,194.21,194.09,4.6365]
[1761425021449,8.28889555,194.25,194.09,4.6365]
[1761425021651,8.28889555,194.24,194.1,2.62]
[1761425021949,8.28889555,194.23,194.1,2.62]
[1761425022152,3.71543172,194.22,194.1,2.62]
[1761425022349,3.71543172,194.21,194.1,2.62]
[1761425022648,3.71543172,194.24,194.1,2.62]
[1761425022849,3.71543172,194.23,194.1,2.62]
[1761425023051,3.71543172,194.22,194.1,2.62]
[1761425023244,3.71543172,194.21,194.1,2.62]
[1761425023460,3.71543172,194.24,194.1,2.62]
[1761425023665,3.71543172,194.23,194.1,2.62]
[1761425023866,3.71543172,194.22,194.1,2.62]
[1761425024057,3.71543172,194.21,194.1,2.62]
[1761425024258,3.71543172,194.24,194.1,2.62]
[1761425024457,3.71543172,194.23,194.1,2.62]
[1761425024659,3.71543172,194.22,194.1,2.62]
[1761425024860,3.71543172,194.21,194.1,2.62]
[1761425025056,3.71543172,194.24,194.1,7.2561]
[1761425025270,3.71543172,194.23,194.11,2.62]
[1761425025467,3.71543172,194.22,194.11,2.62]
[1761425025767,8.16409961,194.23,194.11,2.62]
[1761425025969,8.16409961,194.22,194.07,51.01050043]
[1761425026267,3.71543172,194.21,194.07,51.01050043]
[1761425026469,3.71543172,194.2,194.07,51.01050043]
[1761425026666,4.80490883,194.29,194.07,51.01050043]
[1761425026869,3.83082792,194.28,194.07,51.01050043]
[1761425027166,19.31472918,194.14,194.05,21.97538803]
[1761425027365,0.00082792,194.13,194.05,21.97538803]
[1761425027560,0.46,194.24,194.05,21.97538803]
[1761425027961,0.46,194.24,194.12,4.6358]
[1761425028160,0.46,194.24,194.13,2.62]
[1761425029470,12.44510709,194.21,194.13,2.62]
[1761425030265,4.6339,194.2,194.13,2.62]
[1761425032665,4.6339,194.2,194.15,2.62]
[1761425035074,2.66,194.27,194.17,2.62]
[1761425036676,6.10496637,194.18,194.17,2.62]
[1761425036875,2.66,194.27,194.17,2.62]
[1761425037073,4.6328,194.25,194.17,2.62]
[1761425040782,2.66,194.27,194.17,2.62]
[1761425048379,2.66,194.27,194.12,3.36995783]
[1761425048882,2.68,194.26,194.12,3.36995783]
[1761425049082,2.68,194.25,194.12,3.36995783]
[1761425049475,12.44510709,194.25,194.05,10.96]
[1761425049682,2.68,194.23,194.05,10.96]
[1761425049983,4.04966852,194.23,194.05,10.96]
[1761425050185,9.07363914,194.16,194.05,10.96]
[1761425050385,4.04966852,194.15,194.06,1.7]
[1761425050583,4.04966852,194.15,194.08,1.7]
[1761425051989,2.68,194.16,194.08,1.7]
[1761425052382,6.72966852,194.16,194.05,10.06923999]
[1761425052583,4.04966852,194.15,194.05,10.06923999]
[1761425052783,11.75363914,194.16,194.05,10.06923999]
[1761425052985,4.04966852,194.15,194.05,10.06923999]
[1761425053289,11.75363914,194.16,194.05,10.06923999]
[1761425053590,11.75363914,194.16,194.05,14.70653999]
[1761425053781,9.07363914,194.15,194.05,14.70653999]
[1761425054176,9.07363914,194.14,194.05,14.70653999]
[1761425056194,9.07363914,194.13,194.05,14.70653999]
[1761425057095,9.07363914,194.13,194.06,4.637]
[1761425057283,9.07363914,194.12,194.06,4.637]
[1761425057589,9.07363914,194.12,194.06,5.677]
[1761425057789,9.07363914,194.12,194.06,4.637]
[1761425057989,2.68,194.17,194.06,4.637]
[1761425058298,11.75363914,194.17,194.06,4.637]
[1761425058991,9.07363914,194.12,194.06,4.637]
[1761425059293,9.07363914,194.11,194.05,10.06923999]
[1761425059480,12.44510709,194.14,194.05,10.06923999]
[1761425059987,2.68,194.17,194.05,10.06923999]
[1761425060294,2.68,194.17,194.09,4.6365]
[1761425060796,12.44510709,194.29,194.09,4.6365]
[1761425061093,2.68,194.25,194.09,4.6365]
[1761425061290,2.68,194.24,194.09,4.6365]
[1761425062293,2.68,194.22,194.09,4.6365]
[1761425063091,2.68,194.22,194.05,10.06923999]
[1761425063092,2.68,194.22,193.96,205.92]
[1761425063297,2.68,194.21,193.97,15.56]
[1761425064094,2.68,194.18,194.05,4.6372]
[1761425064280,2.68,194.17,194.05,4.6372]
[1761425066190,2.68,194.15,194.05,4.6372]
[1761425067384,2.68,194.15,193.97,30.65828406]
[1761425067996,2.68,194.15,194.05,4.6372]
[1761425069091,12.44510709,194.11,194.05,4.6372]
[1761425069299,12.44510709,194.07,193.97,30.65828406]
[1761425069685,12.44510709,194.06,193.97,30.65828406]
[1761425070182,15.55638387,194.14,193.97,30.65828406]
[1761425070388,15.55638387,194.09,193.97,30.65828406]
[1761425070888,15.55638387,194.12,193.97,30.65828406]
[1761425071194,15.55638387,194.13,193.98,62.4]
[1761425071390,21.40453542,194.11,193.98,62.4]
[1761425072193,24.08453542,194.14,193.98,62.4]
[1761425073195,24.08453542,194.14,194.04,4.6375]
[1761425073392,2.68,194.14,194.04,4.6375]
[1761425074197,21.40453542,194.11,193.98,62.4]
[1761425074995,21.40453542,194.11,194.04,4.6375]
[1761425077395,21.40453542,194.12,194.04,4.6375]
[1761425078401,21.40453542,194.12,193.98,62.4]
[1761425078590,24.03453542,194.12,193.98,62.4]
[1761425079002,24.03453542,194.12,194.04,4.6375]
[1761425079397,21.40453542,194.07,194.04,4.6375]
[1761425079800,21.40453542,194.06,194.04,4.6375]
[1761425080394,14.84204997,194.06,194.04,4.6375]
[1761425080595,15.95443512,194.13,194.06,4.637]
[1761425080905,18.58443512,194.13,194.06,67.017]
[1761425081099,18.58443512,194.11,194.06,67.017]
[1761425081402,18.58443512,194.11,194.06,45.15765662]
[1761425081991,18.58443512,194.11,194.06,49.79465662]
[1761425082196,2.63,194.11,194.06,49.79465662]
[1761425083305,15.95443512,194.09,194.06,49.79465662]
[1761425083995,44.38,194.28,194.07,5.31084676]
[1761425084190,44.38,194.28,194.08,5.31084676]
[1761425084398,44.38,194.28,194.09,5.24138263]
[1761425084594,44.38,194.28,194.06,24.50244061]
[1761425084899,44.38,194.28,194.11,12.70907788]
[1761425085099,44.38,194.28,194.12,4.44193358]
[1761425085303,44.38,194.28,194.13,4.44193358]
[1761425085602,44.38,194.28,194.14,4.44193358]
[1761425085803,44.38,194.28,194.15,4.44193358]
[1761425086103,2.63,194.27,194.16,4.44193358]
[1761425086304,2.63,194.27,194.07,4.6368]
[1761425086504,2.63,194.27,194.08,3.98860248]
[1761425086702,2.63,194.27,194.09,3.98860248]
[1761425086906,2.63,194.27,194.1,3.98860248]
[1761425087096,2.63,194.27,194.11,3.98860248]
[1761425087296,2.63,194.26,194.12,3.98860248]
[1761425087603,2.63,194.26,194.07,4.6368]
[1761425087801,2.63,194.26,194.08,3.96972062]
[1761425088008,2.63,194.26,194.09,3.96972062]
[1761425088201,2.63,194.26,194.1,3.96972062]
[1761425088506,2.63,194.26,194.11,3.96972062]
[1761425088696,2.63,194.26,194.12,3.96972062]
[1761425088897,2.63,194.26,194.07,4.6368]
[1761425089096,2.63,194.26,194.08,4.02714688]
[1761425089302,2.63,194.26,194.07,4.6368]
[1761425102310,2.63,194.26,194.08,4.6366]
[1761425102909,2.63,194.26,194.09,4.6363]
[1761425108011,2.63,194.26,194.1,4.6361]
[1761425108214,2.63,194.26,194.06,19.86544061]
[1761425108914,2.63,194.26,194.11,4.6358]
[1761425109818,2.63,194.26,194.12,4.6356]
[1761425110117,2.63,194.26,194.06,19.86544061]
[1761425110709,2.63,194.26,194.14,4.6351]
[1761425119126,2.63,194.26,194.15,4.6348]
[1761425121314,2.63,194.26,194.06,19.86544061]
[1761425121315,2.63,194.26,194.16,4.6346]
[1761425122129,2.63,194.26,194.17,4.15304525]
[1761425122327,2.63,194.26,194.18,4.15304525]
[1761425122525,2.63,194.26,194.19,4.15304525]
[1761425122824,2.63,194.26,194.2,4.15304525]
[1761425123026,2.63,194.26,194.21,4.15304525]
[1761425123324,2.63,194.26,194.22,4.15304525]
[1761425123526,2.63,194.26,194.23,4.15304525]
[1761425123726,2.63,194.26,194.24,4.15304525]
[1761425123926,2.63,194.26,194.25,4.15304525]
[1761425124330,0.05632351,194.26,194.25,4.15304525]
[1761425124729,206.87607581,194.4,194.25,4.15304525]
[1761425124932,62.3,194.38,194.26,4.15304525]
[1761425125121,62.3,194.38,194.27,4.15304525]
[1761425125429,62.3,194.38,194.28,4.29006601]
[1761425125728,62.3,194.38,194.2,4.5621177]
[1761425125922,206.87607581,194.4,194.21,4.19123098]
[1761425126128,62.28,194.39,194.22,4.19123098]
[1761425126328,62.28,194.39,194.24,4.5621177]
[1761425126631,2.94,194.38,194.29,4.5621177]
[1761425126829,2.94,194.38,194.3,4.19123098]
[1761425127031,2.94,194.38,194.31,4.19123098]
[1761425127227,2.94,194.38,194.33,4.5621177]
[1761425127537,2.94,194.38,194.29,6.09265807]
[1761425127828,2.94,194.38,194.2,4.6337]
[1761425127829,2.94,194.38,194.28,6.09265807]
[1761425128319,56.2125886,194.39,194.28,9.13358129]
[1761425128723,56.2125886,194.39,194.32,9.13358129]
[1761425128920,56.2125886,194.39,194.23,13.16907788]
[1761425128921,56.2125886,194.39,194.24,3.13]
[1761425129330,34.49833902,194.39,194.3,12.70907788]
[1761425129722,34.49833902,194.39,194.24,3.13]
[1761425130231,2.94,194.38,194.24,3.13]
[1761425133937,2.94,194.37,194.24,3.13]
[1761425166868,2.94,194.37,194.25,2.84]
[1761425167071,2.94,194.37,194.27,2.84]
[1761425170873,2.94,194.37,194.28,2.92]
[1761425172376,2.91,194.36,194.28,2.92]
[1761425175174,2.91,194.4,194.28,2.92]
[1761425175368,4.44601839,194.4,194.3,2.92]
[1761425175573,2.91,194.43,194.32,2.92]
[1761425175874,7.35601839,194.42,194.32,2.92]
[1761425176070,2.91,194.42,194.32,2.92]
[1761425202694,4.629,194.41,194.34,2.76]
[1761425203292,4.629,194.41,194.33,4.6308]
[1761425203293,4.6283,194.44,194.36,2.76]
[1761425204393,2.85,194.54,194.38,2.76]
[1761425204594,2.85,194.52,194.38,2.76]
[1761425204799,2.85,194.5,194.38,2.76]
[1761425204988,6.54725756,194.5,194.38,2.76]
[1761425205192,2.85,194.5,194.38,2.76]
[1761425206001,4.6273,194.48,194.39,2.76]
[1761425208104,2.85,194.5,194.32,9.59359605]
[1761425208304,2.85,194.5,194.33,2.76]
[1761425208809,2.85,194.5,194.35,2.76]
[1761425209298,2.85,194.57,194.44,2.76]
[1761425209500,2.85,194.56,194.44,2.76]
[1761425214412,2.85,194.6,194.5,2.76]
[1761425214817,6.53803303,194.63,194.5,2.76]
[1761425215011,2.85,194.63,194.54,2.76]
[1761425215719,2.85,194.63,194.55,2.76]
[1761425221621,2.8,194.59,194.52,2.83]
[1761425221818,2.8,194.59,194.44,11.14]
[1761425222018,2.8,194.59,194.45,2.83]
[1761425222421,2.8,194.58,194.46,2.83]
[1761425223115,7.4255,194.56,194.46,2.83]
[1761425223311,2.8,194.55,194.46,2.83]
[1761425229226,4.6262,194.53,194.46,2.83]
[1761425231826,2.79,194.52,194.46,2.83]
[1761425234831,2.79,194.51,194.46,2.83]
[1761425235530,4.6261,194.53,194.46,2.83]
[1761425239032,2.79,194.54,194.46,2.83]
[1761425239233,4.6258,194.55,194.42,2.71]
[1761425239733,7.4158,194.55,194.42,2.71]
[1761425239931,7.4158,194.55,194.47,4.6273]
[1761425240137,7.4158,194.55,194.48,2.71]
[1761425244333,2.79,194.63,194.49,2.71]
[1761425245634,2.79,194.63,194.51,2.71]
[1761425246842,2.79,194.63,194.52,2.71]
[1761425248330,2.79,194.62,194.52,2.71]
[1761425250042,2.79,194.62,194.53,2.71]
[1761425251727,2.79,194.62,194.53,4.6259]
[1761425251930,2.79,194.62,194.54,2.71]
[1761425253338,3.70648132,194.61,194.54,2.71]
[1761425253538,4.78543647,194.63,194.54,2.71]
[1761425253539,6.49648132,194.6,194.54,2.71]
[1761425253726,3.70648132,194.59,194.54,2.71]
[1761425254340,6.49648132,194.59,194.54,2.71]
[1761425254542,2.79,194.59,194.54,2.71]
[1761425255442,6.49707504,194.59,194.54,2.71]
[1761425255643,2.79,194.59,194.54,2.71]
[1761425257138,3.70843089,194.58,194.54,2.71]
[1761425257341,8.08122952,194.62,194.54,2.71]
[1761425257543,7.57543647,194.64,194.54,2.71]
[1761425257544,8.08112349,194.61,194.54,2.71]
[1761425257744,3.70832486,194.6,194.54,2.71]
[1761425257938,3.70832486,194.59,194.54,2.71]
[1761425258244,4.37332146,194.63,194.55,2.58]
[1761425260047,4.37332146,194.63,194.55,7.2053]
[1761425260242,4.37332146,194.62,194.56,2.58]
[1761425260446,4.37332146,194.63,194.56,2.58]
[1761425260641,4.37332146,194.62,194.56,2.58]
[1761425260842,4.37332146,194.63,194.56,2.58]
[1761425261148,4.37332146,194.62,194.57,2.58]
[1761425261347,7.02332146,194.63,194.57,2.58]
[1761425261549,4.37332146,194.62,194.57,2.58]
[1761425261750,2.65,194.62,194.57,2.58]
[1761425262145,7.02332146,194.62,194.57,2.58]
[1761425262340,7.02332146,194.61,194.57,2.58]
[1761425262537,2.65,194.61,194.57,2.58]
[1761425263449,7.0987875,194.61,194.57,2.58]
[1761425263758,2.65,194.61,194.57,2.58]
[1761425264748,4.4485782,194.61,194.59,2.58]
[1761425264949,4.4485782,194.62,194.59,2.58]
[1761425265145,7.0985782,194.62,194.59,2.58]
[1761425265346,4.4485782,194.61,194.59,2.58]
[1761425266253,2.65,194.62,194.59,2.58]
[1761425266646,7.0985782,194.62,194.59,2.58]
[1761425266852,4.4485782,194.61,194.59,2.58]
[1761425267047,2.65,194.62,194.59,2.58]
[1761425267446,7.0985782,194.62,194.59,2.58]
[1761425267648,2.65,194.62,194.59,2.58]
[1761425270459,4.32425168,194.64,194.59,2.58]
[1761425270758,11.75968815,194.65,194.59,2.58]
[1761425271055,2.65,194.63,194.59,2.58]
[1761425280174,2.65,194.63,194.6,2.71]
[1761425283768,9.40853647,194.66,194.6,2.71]
[1761425283975,12.26853647,194.66,194.61,2.71]
[1761425284175,2.86,194.65,194.61,2.71]
[1761425284569,2.86,194.63,194.61,2.71]
[1761425284768,7.22906806,194.63,194.61,2.71]
[1761425284969,4.36906806,194.62,194.61,2.71]
[1761425285177,7.22906806,194.65,194.61,2.71]
[1761425285471,6.37278701,194.68,194.63,2.71]
[1761425285472,7.64543647,194.68,194.63,2.71]
[1761425285675,2.86,194.68,194.63,2.71]
[1761425285877,2.86,194.68,194.64,2.71]
[1761425286184,4.78543647,194.69,194.64,2.71]
[1761425286372,7.64543647,194.7,194.64,2.71]
[1761425286575,2.86,194.69,194.64,2.71]
[1761425291481,2.86,194.69,194.63,4.6236]
[1761425292778,2.86,194.69,194.64,4.6232]
[1761425292985,2.86,194.69,194.65,2.78]
[1761425297786,2.86,194.69,194.66,2.78]
[1761425297987,2.86,194.7,194.66,2.78]
[1761425299181,2.86,194.74,194.65,4.8014243]
[1761425299492,2.86,194.74,194.66,2.78]